[Event "Early-Titled-Tuesday-Blitz-November-28-2023"]
[Site "Chess.com"]
[Date "2023.11.28"]
[Round "6"]
[White "Arvids_Andrejevs"]
[Black "Mystery2007"]
[Result "0-1"]
[WhiteElo "2374"]
[BlackElo "2561"]
[TimeControl "180+1"]
[EndTime "9:10:43 PST"]
[Termination "Mystery2007 won by resignation"]

1. d4 {[%clk 0:03:00.9]} 1... g6 {[%clk 0:03:00.3]} 2. Nc3 {[%clk 0:02:59.7]}
2... Bg7 {[%clk 0:03:00.9]} 3. e4 {[%clk 0:03:00.4]} 3... d6 {[%clk 0:03:01.1]}
4. Bf4 {[%clk 0:03:00.9]} 4... c6 {[%clk 0:02:59.5]} 5. f3 {[%clk 0:02:59.6]}
5... Nf6 {[%clk 0:03:00]} 6. Qd2 {[%clk 0:02:59.8]} 6... h5 {[%clk 0:02:50.3]}
7. O-O-O {[%clk 0:02:58.6]} 7... b5 {[%clk 0:02:48.3]} 8. e5 {[%clk 0:02:58.7]}
8... dxe5 {[%clk 0:02:45.3]} 9. Bxe5 {[%clk 0:02:54.9]} 9... Be6 {[%clk
0:02:43.1]} 10. Kb1 {[%clk 0:02:52]} 10... O-O {[%clk 0:02:40.5]} 11. Nce2
{[%clk 0:01:39.1]} 11... Nbd7 {[%clk 0:02:37.6]} 12. Bf4 {[%clk 0:01:37]} 12...
Nb6 {[%clk 0:02:32.3]} 13. Nc1 {[%clk 0:01:32.4]} 13... Re8 {[%clk 0:02:29.6]}
14. Bh6 {[%clk 0:01:29.3]} 14... Bh8 {[%clk 0:02:29.2]} 15. h4 {[%clk
0:01:28.2]} 15... a5 {[%clk 0:02:28.6]} 16. Nh3 {[%clk 0:01:26.1]} 16... b4
{[%clk 0:02:13.8]} 17. Ng5 {[%clk 0:01:24.7]} 17... Bd5 {[%clk 0:02:09.3]} 18.
Bd3 {[%clk 0:01:17.4]} 18... Rb8 {[%clk 0:02:05.1]} 19. Ne4 {[%clk 0:01:14.5]}
19... Na4 {[%clk 0:02:02.3]} 20. b3 {[%clk 0:01:07]} 20... Nxe4 {[%clk 0:01:57]}
21. fxe4 {[%clk 0:00:49]} 21... Nc3+ {[%clk 0:01:57.1]} 22. Kb2 {[%clk
0:00:43.5]} 22... Bxd4 {[%clk 0:01:52.3]} 0-1

[Event "Early-Titled-Tuesday-Blitz-November-28-2023"]
[Site "Chess.com"]
[Date "2023.11.28"]
[Round "6"]
[White "Vesper2018"]
[Black "becemix"]
[Result "1-0"]
[WhiteElo "2616"]
[BlackElo "2367"]
[TimeControl "180+1"]
[EndTime "9:10:57 PST"]
[Termination "Vesper2018 won by checkmate"]

1. e4 {[%clk 0:03:00.9]} 1... c5 {[%clk 0:02:58.7]} 2. Nc3 {[%clk 0:03:00.6]}
2... a6 {[%clk 0:02:42.8]} 3. g3 {[%clk 0:02:59.7]} 3... b5 {[%clk 0:02:41.9]}
4. Bg2 {[%clk 0:02:58.8]} 4... Bb7 {[%clk 0:02:42.3]} 5. Nge2 {[%clk 0:02:57.3]}
5... e6 {[%clk 0:02:42.4]} 6. d4 {[%clk 0:02:57]} 6... c4 {[%clk 0:02:38.8]} 7.
O-O {[%clk 0:02:51.7]} 7... d6 {[%clk 0:02:38.8]} 8. d5 {[%clk 0:02:48.5]} 8...
exd5 {[%clk 0:02:34.6]} 9. exd5 {[%clk 0:02:21.5]} 9... Nf6 {[%clk 0:02:33.2]}
10. Nd4 {[%clk 0:02:17.7]} 10... Be7 {[%clk 0:02:30.7]} 11. Nf5 {[%clk
0:02:17.5]} 11... O-O {[%clk 0:02:30.8]} 12. Re1 {[%clk 0:02:14.4]} 12... Re8
{[%clk 0:02:26.9]} 13. Bg5 {[%clk 0:02:12.8]} 13... Nbd7 {[%clk 0:02:13.7]} 14.
Qd4 {[%clk 0:02:04.8]} 14... Bf8 {[%clk 0:02:06.8]} 15. Ne4 {[%clk 0:01:55.3]}
15... Re5 {[%clk 0:01:49.2]} 16. Nxf6+ {[%clk 0:01:27]} 16... gxf6 {[%clk
0:01:46.1]} 17. Nh6+ {[%clk 0:01:26.2]} 17... Kg7 {[%clk 0:01:39.8]} 18. Bd2
{[%clk 0:01:12.9]} 18... Be7 {[%clk 0:00:59.6]} 19. Qg4+ {[%clk 0:01:05]} 19...
Kf8 {[%clk 0:00:54.4]} 20. Qg8# {[%clk 0:01:04.4]} 1-0

[Event "Early-Titled-Tuesday-Blitz-November-28-2023"]
[Site "Chess.com"]
[Date "2023.11.28"]
[Round "6"]
[White "Let_it_be_1"]
[Black "GiorgianBarbosa"]
[Result "0-1"]
[WhiteElo "2653"]
[BlackElo "2530"]
[TimeControl "180+1"]
[EndTime "9:11:02 PST"]
[Termination "GiorgianBarbosa won by resignation"]

1. e4 {[%clk 0:03:00.9]} 1... c5 {[%clk 0:02:58.2]} 2. Nf3 {[%clk 0:03:00.4]}
2... g6 {[%clk 0:02:58.7]} 3. d4 {[%clk 0:03:00.5]} 3... cxd4 {[%clk 0:02:59.6]}
4. Nxd4 {[%clk 0:03:00.2]} 4... Bg7 {[%clk 0:03:00]} 5. c4 {[%clk 0:02:59.9]}
5... Nc6 {[%clk 0:03:00.6]} 6. Be3 {[%clk 0:02:59.8]} 6... Nf6 {[%clk
0:03:01.1]} 7. Nc3 {[%clk 0:02:59.8]} 7... O-O {[%clk 0:03:01.7]} 8. Be2 {[%clk
0:02:59.8]} 8... Nxd4 {[%clk 0:03:02.3]} 9. Bxd4 {[%clk 0:02:57.7]} 9... d6
{[%clk 0:03:03.2]} 10. O-O {[%clk 0:02:56.6]} 10... Bd7 {[%clk 0:03:03.6]} 11.
f3 {[%clk 0:02:47.3]} 11... Bc6 {[%clk 0:03:03.2]} 12. Rc1 {[%clk 0:02:43.4]}
12... a5 {[%clk 0:03:02.8]} 13. b3 {[%clk 0:02:43]} 13... Nd7 {[%clk 0:03:03.4]}
14. Be3 {[%clk 0:02:42.9]} 14... Nc5 {[%clk 0:03:01.2]} 15. Qd2 {[%clk
0:02:39.2]} 15... e6 {[%clk 0:03:01.6]} 16. Bh6 {[%clk 0:02:23.1]} 16... Bxh6
{[%clk 0:02:48.6]} 17. Qxh6 {[%clk 0:02:23.1]} 17... e5 {[%clk 0:02:47.7]} 18.
Rfd1 {[%clk 0:02:19.8]} 18... Qe7 {[%clk 0:02:46.9]} 19. Rd2 {[%clk 0:02:10.9]}
19... f5 {[%clk 0:02:25.7]} 20. exf5 {[%clk 0:02:09.9]} 20... Rxf5 {[%clk
0:02:25.3]} 21. Rcd1 {[%clk 0:02:01.2]} 21... Rh5 {[%clk 0:01:53.2]} 22. Qe3
{[%clk 0:02:00.9]} 22... Qh4 {[%clk 0:01:53.6]} 23. h3 {[%clk 0:02:00.1]} 23...
Ne6 {[%clk 0:01:31.5]} 24. Rxd6 {[%clk 0:01:37.6]} 24... Nf4 {[%clk 0:01:30.3]}
25. Bf1 {[%clk 0:01:37.8]} 25... Qg3 {[%clk 0:01:25.6]} 26. Kh1 {[%clk
0:00:58.4]} 26... Rxh3+ {[%clk 0:01:23.5]} 27. gxh3 {[%clk 0:00:58.2]} 27...
Bxf3+ {[%clk 0:01:24]} 28. Qxf3 {[%clk 0:00:58.6]} 28... Qxf3+ {[%clk 0:01:24]}
29. Kh2 {[%clk 0:00:59.2]} 29... Qxc3 {[%clk 0:01:17.6]} 0-1

[Event "Early-Titled-Tuesday-Blitz-November-28-2023"]
[Site "Chess.com"]
[Date "2023.11.28"]
[Round "6"]
[White "Rakhmanov_Aleksandr"]
[Black "Alexei_Gubajdullin"]
[Result "1-0"]
[WhiteElo "2843"]
[BlackElo "2674"]
[TimeControl "180+1"]
[EndTime "9:11:13 PST"]
[Termination "Rakhmanov_Aleksandr won by resignation"]

1. d4 {[%clk 0:03:00.9]} 1... Nf6 {[%clk 0:02:59.9]} 2. c4 {[%clk 0:03:00.8]}
2... g6 {[%clk 0:02:59.7]} 3. Nc3 {[%clk 0:03:01.3]} 3... Bg7 {[%clk 0:03:00.1]}
4. e4 {[%clk 0:03:01.3]} 4... d6 {[%clk 0:03:00.5]} 5. h3 {[%clk 0:03:02.2]}
5... O-O {[%clk 0:03:00.5]} 6. Be3 {[%clk 0:03:02.6]} 6... Na6 {[%clk
0:03:00.8]} 7. g4 {[%clk 0:03:02.5]} 7... e5 {[%clk 0:03:01.1]} 8. d5 {[%clk
0:03:02.7]} 8... Nc5 {[%clk 0:03:01.3]} 9. f3 {[%clk 0:03:03.5]} 9... a5 {[%clk
0:03:01.5]} 10. Qd2 {[%clk 0:03:03.9]} 10... a4 {[%clk 0:03:00.8]} 11. Nge2
{[%clk 0:03:04.4]} 11... h5 {[%clk 0:02:58.7]} 12. Bg5 {[%clk 0:03:03.8]} 12...
Qd7 {[%clk 0:02:54.6]} 13. Ng3 {[%clk 0:03:02.8]} 13... Nh7 {[%clk 0:02:52.3]}
14. gxh5 {[%clk 0:02:52.6]} 14... Nxg5 {[%clk 0:02:51.8]} 15. Qxg5 {[%clk
0:02:53.5]} 15... Qd8 {[%clk 0:02:39]} 16. Qxd8 {[%clk 0:02:33.7]} 16... Rxd8
{[%clk 0:02:38.3]} 17. h4 {[%clk 0:02:31.6]} 17... Bh6 {[%clk 0:02:36.6]} 18.
Kf2 {[%clk 0:02:30.3]} 18... Bd2 {[%clk 0:02:21.3]} 19. Rd1 {[%clk 0:02:29.5]}
19... Bxc3 {[%clk 0:02:14.1]} 20. bxc3 {[%clk 0:02:30.4]} 20... Ra6 {[%clk
0:02:14.4]} 21. Rb1 {[%clk 0:02:28.1]} 21... Kg7 {[%clk 0:02:04.8]} 22. hxg6
{[%clk 0:02:26.6]} 22... fxg6 {[%clk 0:02:04.9]} 23. h5 {[%clk 0:02:26.9]} 23...
Rf8 {[%clk 0:02:01.3]} 24. Be2 {[%clk 0:02:21.2]} 24... g5 {[%clk 0:01:59]} 25.
h6+ {[%clk 0:02:20.4]} 25... Kh7 {[%clk 0:01:59]} 26. Ke3 {[%clk 0:02:16]} 26...
Rf6 {[%clk 0:01:55.7]} 27. Rh5 {[%clk 0:02:14.1]} 27... Rxh6 {[%clk 0:01:35.7]}
28. Rxg5 {[%clk 0:02:08.8]} 28... Rh2 {[%clk 0:01:35.4]} 29. Rg1 {[%clk
0:02:02.1]} 29... Bd7 {[%clk 0:00:57.8]} 30. Nh5 {[%clk 0:01:45.4]} 1-0

[Event "Early-Titled-Tuesday-Blitz-November-28-2023"]
[Site "Chess.com"]
[Date "2023.11.28"]
[Round "6"]
[White "zajka-molotok"]
[Black "pirulillo"]
[Result "1-0"]
[WhiteElo "2500"]
[BlackElo "2312"]
[TimeControl "180+1"]
[EndTime "9:11:19 PST"]
[Termination "zajka-molotok won by resignation"]

1. e4 {[%clk 0:03:00.9]} 1... c5 {[%clk 0:02:59.4]} 2. Nf3 {[%clk 0:03:00.2]}
2... e6 {[%clk 0:02:59.8]} 3. g3 {[%clk 0:02:59.7]} 3... d5 {[%clk 0:02:58.4]}
4. exd5 {[%clk 0:02:59.4]} 4... exd5 {[%clk 0:02:58.8]} 5. d4 {[%clk 0:03:00.1]}
5... Nc6 {[%clk 0:02:52.9]} 6. Bg2 {[%clk 0:02:59.5]} 6... Nf6 {[%clk
0:02:51.9]} 7. O-O {[%clk 0:02:59.4]} 7... h6 {[%clk 0:02:52.3]} 8. Re1+ {[%clk
0:02:55.7]} 8... Be7 {[%clk 0:02:52.8]} 9. dxc5 {[%clk 0:02:55.4]} 9... O-O
{[%clk 0:02:52.6]} 10. a3 {[%clk 0:02:38.7]} 10... Bxc5 {[%clk 0:02:44]} 11. b4
{[%clk 0:02:38.1]} 11... Bb6 {[%clk 0:02:33.2]} 12. Bb2 {[%clk 0:02:36.7]} 12...
Ne4 {[%clk 0:02:31.1]} 13. Nd4 {[%clk 0:02:33.3]} 13... Qf6 {[%clk 0:02:25.4]}
14. Bxe4 {[%clk 0:02:27.5]} 14... Nxd4 {[%clk 0:02:23.2]} 15. Bxd5 {[%clk
0:02:20.1]} 15... Bh3 {[%clk 0:02:06.3]} 16. Nd2 {[%clk 0:02:09.4]} 16... Rad8
{[%clk 0:02:02.8]} 17. c4 {[%clk 0:02:05.1]} 17... Nf3+ {[%clk 0:01:01.9]} 18.
Qxf3 {[%clk 0:01:56.5]} 18... Qxb2 {[%clk 0:01:02.3]} 19. Ne4 {[%clk 0:01:50.1]}
19... Rfe8 {[%clk 0:00:46]} 20. Bxf7+ {[%clk 0:01:43.7]} 20... Kh8 {[%clk
0:00:42.3]} 21. Bxe8 {[%clk 0:01:43.6]} 21... Rxe8 {[%clk 0:00:42]} 22. Ng5
{[%clk 0:01:30.2]} 22... Qxf2+ {[%clk 0:00:20]} 23. Qxf2 {[%clk 0:01:28.9]}
23... Bxf2+ {[%clk 0:00:20.9]} 24. Kxf2 {[%clk 0:01:28.5]} 24... Rf8+ {[%clk
0:00:21]} 25. Nf3 {[%clk 0:01:27.3]} 1-0

[Event "Early-Titled-Tuesday-Blitz-November-28-2023"]
[Site "Chess.com"]
[Date "2023.11.28"]
[Round "6"]
[White "KorolDimitriy75"]
[Black "BarloNadera"]
[Result "1-0"]
[WhiteElo "2327"]
[BlackElo "2119"]
[TimeControl "180+1"]
[EndTime "9:11:19 PST"]
[Termination "KorolDimitriy75 won by checkmate"]

1. d4 {[%clk 0:03:00.9]} 1... d5 {[%clk 0:02:29.1]} 2. c4 {[%clk 0:03:00.5]}
2... e6 {[%clk 0:02:27.3]} 3. Nc3 {[%clk 0:03:00.6]} 3... c6 {[%clk 0:02:27.3]}
4. e3 {[%clk 0:03:00.4]} 4... Nf6 {[%clk 0:02:26.1]} 5. Nf3 {[%clk 0:03:00.1]}
5... Nbd7 {[%clk 0:02:26.5]} 6. Bd3 {[%clk 0:03:00.3]} 6... dxc4 {[%clk
0:02:25.9]} 7. Bxc4 {[%clk 0:03:01.2]} 7... b5 {[%clk 0:02:25.8]} 8. Be2 {[%clk
0:03:01.4]} 8... Bb7 {[%clk 0:02:26.1]} 9. e4 {[%clk 0:03:01.5]} 9... b4 {[%clk
0:02:22.9]} 10. e5 {[%clk 0:03:01.7]} 10... bxc3 {[%clk 0:02:22.3]} 11. exf6
{[%clk 0:03:01.8]} 11... cxb2 {[%clk 0:02:22.1]} 12. fxg7 {[%clk 0:03:02]} 12...
Bxg7 {[%clk 0:02:21.7]} 13. Bxb2 {[%clk 0:03:01.4]} 13... c5 {[%clk 0:02:20.1]}
14. O-O {[%clk 0:02:59.6]} 14... O-O {[%clk 0:02:17.7]} 15. Rc1 {[%clk
0:02:44.2]} 15... Re8 {[%clk 0:02:14.2]} 16. Qd2 {[%clk 0:02:36.6]} 16... cxd4
{[%clk 0:01:49.6]} 17. Bxd4 {[%clk 0:01:59]} 17... Nf6 {[%clk 0:01:49]} 18. Rfd1
{[%clk 0:01:54.4]} 18... Bd5 {[%clk 0:01:42.9]} 19. h3 {[%clk 0:01:09.4]} 19...
Ne4 {[%clk 0:01:34.6]} 20. Qe3 {[%clk 0:01:03.9]} 20... Bxd4 {[%clk 0:01:23.4]}
21. Rxd4 {[%clk 0:01:02.4]} 21... Nd6 {[%clk 0:01:17.3]} 22. Rg4+ {[%clk
0:00:49.7]} 22... Kf8 {[%clk 0:01:16.3]} 23. Qh6+ {[%clk 0:00:41.3]} 23... Ke7
{[%clk 0:01:15.3]} 24. Qh4+ {[%clk 0:00:34.9]} 24... Kd7 {[%clk 0:01:13.1]} 25.
Ne5# {[%clk 0:00:34.3]} 1-0

[Event "Early-Titled-Tuesday-Blitz-November-28-2023"]
[Site "Chess.com"]
[Date "2023.11.28"]
[Round "6"]
[White "DDTerziev04"]
[Black "Aisen1011"]
[Result "0-1"]
[WhiteElo "2132"]
[BlackElo "2435"]
[TimeControl "180+1"]
[EndTime "9:11:24 PST"]
[Termination "Aisen1011 won by resignation"]

1. e4 {[%clk 0:03:00.9]} 1... e5 {[%clk 0:02:59.3]} 2. Nf3 {[%clk 0:03:00]} 2...
Nc6 {[%clk 0:02:59.5]} 3. Bc4 {[%clk 0:03:00]} 3... Bc5 {[%clk 0:02:59.4]} 4. d3
{[%clk 0:03:00.2]} 4... Nf6 {[%clk 0:02:59.7]} 5. O-O {[%clk 0:03:00]} 5... O-O
{[%clk 0:02:59.6]} 6. h3 {[%clk 0:02:57]} 6... h6 {[%clk 0:02:57.9]} 7. Nbd2
{[%clk 0:02:56.4]} 7... a5 {[%clk 0:02:57.3]} 8. Re1 {[%clk 0:02:51.6]} 8... d6
{[%clk 0:02:56.4]} 9. c3 {[%clk 0:02:50.9]} 9... Be6 {[%clk 0:02:56.5]} 10. Bb3
{[%clk 0:02:50.5]} 10... Qb8 {[%clk 0:02:56.6]} 11. Nf1 {[%clk 0:02:48]} 11...
Qa7 {[%clk 0:02:56.8]} 12. Be3 {[%clk 0:02:47.7]} 12... Bxe3 {[%clk 0:02:56.8]}
13. Nxe3 {[%clk 0:02:47.5]} 13... a4 {[%clk 0:02:57]} 14. Bc2 {[%clk 0:02:46.4]}
14... a3 {[%clk 0:02:52.6]} 15. b3 {[%clk 0:02:46.1]} 15... Qc5 {[%clk
0:02:51.6]} 16. Qd2 {[%clk 0:02:44]} 16... b5 {[%clk 0:02:51.8]} 17. d4 {[%clk
0:02:41.7]} 17... exd4 {[%clk 0:02:50.7]} 18. cxd4 {[%clk 0:02:42.6]} 18... Qb4
{[%clk 0:02:51]} 19. Qd1 {[%clk 0:02:32.7]} 19... d5 {[%clk 0:02:42.9]} 20. exd5
{[%clk 0:02:28.3]} 20... Nxd5 {[%clk 0:02:43.8]} 21. Nxd5 {[%clk 0:02:25]} 21...
Bxd5 {[%clk 0:02:42.1]} 22. Qd3 {[%clk 0:02:24.3]} 22... g6 {[%clk 0:02:29.8]}
23. Rad1 {[%clk 0:02:19.7]} 23... Rad8 {[%clk 0:02:25.4]} 24. Nh4 {[%clk
0:02:12]} 24... Rd6 {[%clk 0:02:21.6]} 25. Qe3 {[%clk 0:02:03.6]} 25... Re6
{[%clk 0:02:14.3]} 26. Qxh6 {[%clk 0:01:53]} 26... Rxe1+ {[%clk 0:02:14.1]} 27.
Kh2 {[%clk 0:01:53.4]} 27... Qd6+ {[%clk 0:02:12.3]} 28. g3 {[%clk 0:01:50.9]}
28... Re2 {[%clk 0:02:05.7]} 29. Rd2 {[%clk 0:01:33.3]} 29... Rxd2 {[%clk
0:02:00]} 30. Qxd2 {[%clk 0:01:34.2]} 30... Re8 {[%clk 0:01:55.3]} 31. Qg5
{[%clk 0:01:14.1]} 31... Nxd4 {[%clk 0:01:29.3]} 0-1

[Event "Early-Titled-Tuesday-Blitz-November-28-2023"]
[Site "Chess.com"]
[Date "2023.11.28"]
[Round "6"]
[White "talaicito"]
[Black "ElVital"]
[Result "1-0"]
[WhiteElo "2222"]
[BlackElo "2362"]
[TimeControl "180+1"]
[EndTime "9:11:29 PST"]
[Termination "talaicito won by resignation"]

1. d4 {[%clk 0:03:00.9]} 1... Nf6 {[%clk 0:02:57.3]} 2. Nc3 {[%clk 0:03:01.4]}
2... d5 {[%clk 0:02:56.2]} 3. Bf4 {[%clk 0:03:02]} 3... a6 {[%clk 0:02:54.7]} 4.
e3 {[%clk 0:03:02.2]} 4... b5 {[%clk 0:02:54.3]} 5. Nf3 {[%clk 0:03:02.8]} 5...
c5 {[%clk 0:02:54.3]} 6. dxc5 {[%clk 0:02:54.7]} 6... e6 {[%clk 0:02:45.8]} 7.
b4 {[%clk 0:02:54.1]} 7... Nc6 {[%clk 0:02:42.8]} 8. a3 {[%clk 0:02:51.2]} 8...
Be7 {[%clk 0:02:38.1]} 9. Bd3 {[%clk 0:02:49.1]} 9... O-O {[%clk 0:02:37.7]} 10.
O-O {[%clk 0:02:40.3]} 10... Nd7 {[%clk 0:02:34.1]} 11. Be2 {[%clk 0:02:17.3]}
11... Bf6 {[%clk 0:02:30.1]} 12. Qd2 {[%clk 0:02:16.5]} 12... e5 {[%clk
0:02:30]} 13. Bg3 {[%clk 0:02:14]} 13... d4 {[%clk 0:02:22.9]} 14. Ne4 {[%clk
0:02:04.5]} 14... Bb7 {[%clk 0:02:17.5]} 15. Nd6 {[%clk 0:02:01.4]} 15... dxe3
{[%clk 0:02:08]} 16. fxe3 {[%clk 0:01:56.2]} 16... Qc7 {[%clk 0:01:58]} 17. Rad1
{[%clk 0:01:43.5]} 17... Rad8 {[%clk 0:01:50]} 18. c4 {[%clk 0:01:41.6]} 18...
bxc4 {[%clk 0:01:44.7]} 19. Bxc4 {[%clk 0:01:42.5]} 19... Be7 {[%clk 0:01:30.7]}
20. Qa2 {[%clk 0:01:33.6]} 20... Bxd6 {[%clk 0:01:28.6]} 21. Rxd6 {[%clk
0:01:32.4]} 21... Rde8 {[%clk 0:01:04]} 22. Ng5 {[%clk 0:01:25.1]} 22... Nf6
{[%clk 0:01:03.4]} 23. Rdxf6 {[%clk 0:01:20.9]} 23... gxf6 {[%clk 0:01:02.8]}
24. Rxf6 {[%clk 0:01:20.9]} 24... Qe7 {[%clk 0:00:59.2]} 25. Qf2 {[%clk
0:01:14]} 25... Nd8 {[%clk 0:00:51.3]} 26. Qf5 {[%clk 0:01:11.6]} 1-0

[Event "Early-Titled-Tuesday-Blitz-November-28-2023"]
[Site "Chess.com"]
[Date "2023.11.28"]
[Round "6"]
[White "lefonghua"]
[Black "sergiochess83"]
[Result "0-1"]
[WhiteElo "2709"]
[BlackElo "2887"]
[TimeControl "180+1"]
[EndTime "9:11:34 PST"]
[Termination "sergiochess83 won by resignation"]

1. d4 {[%clk 0:03:00.9]} 1... Nf6 {[%clk 0:02:53.3]} 2. c4 {[%clk 0:03:00.7]}
2... g6 {[%clk 0:02:53.8]} 3. Nc3 {[%clk 0:03:00.9]} 3... d5 {[%clk 0:02:51.1]}
4. cxd5 {[%clk 0:03:01.8]} 4... Nxd5 {[%clk 0:02:50.8]} 5. e4 {[%clk 0:03:02.1]}
5... Nxc3 {[%clk 0:02:51.2]} 6. bxc3 {[%clk 0:03:03]} 6... Bg7 {[%clk
0:02:51.7]} 7. Nf3 {[%clk 0:03:02.9]} 7... c5 {[%clk 0:02:52]} 8. Rb1 {[%clk
0:03:02.8]} 8... O-O {[%clk 0:02:50.1]} 9. Be2 {[%clk 0:03:02.5]} 9... b6 {[%clk
0:02:49.3]} 10. O-O {[%clk 0:03:02.2]} 10... Ba6 {[%clk 0:02:48.7]} 11. Bxa6
{[%clk 0:02:48.5]} 11... Nxa6 {[%clk 0:02:48.3]} 12. Qd3 {[%clk 0:02:48.9]}
12... Nc7 {[%clk 0:02:46.1]} 13. d5 {[%clk 0:02:48.7]} 13... Qd7 {[%clk
0:02:23.7]} 14. c4 {[%clk 0:02:42.7]} 14... e5 {[%clk 0:02:18.3]} 15. Qc2 {[%clk
0:02:27.1]} 15... Ne8 {[%clk 0:02:11]} 16. a4 {[%clk 0:02:19.3]} 16... Nd6
{[%clk 0:02:09]} 17. Re1 {[%clk 0:02:18.2]} 17... h6 {[%clk 0:01:56.3]} 18. Bd2
{[%clk 0:02:15.5]} 18... f5 {[%clk 0:01:53.6]} 19. exf5 {[%clk 0:02:06.1]} 19...
e4 {[%clk 0:01:53.9]} 20. Nh4 {[%clk 0:01:53.5]} 20... g5 {[%clk 0:01:35.5]} 21.
Ng6 {[%clk 0:01:46]} 21... Rxf5 {[%clk 0:01:35.5]} 22. Rxe4 {[%clk 0:01:15.4]}
22... Nxe4 {[%clk 0:01:29.6]} 23. Qxe4 {[%clk 0:01:16.3]} 23... Re8 {[%clk
0:01:28.9]} 24. Qd3 {[%clk 0:01:13.3]} 24... Qf7 {[%clk 0:01:19.6]} 25. g4
{[%clk 0:00:59.1]} 25... Rxf2 {[%clk 0:01:14.3]} 26. d6 {[%clk 0:00:50.8]} 26...
Bd4 {[%clk 0:01:06.6]} 0-1

[Event "Early-Titled-Tuesday-Blitz-November-28-2023"]
[Site "Chess.com"]
[Date "2023.11.28"]
[Round "6"]
[White "StellarChessPro"]
[Black "nicolochessit"]
[Result "1-0"]
[WhiteElo "2531"]
[BlackElo "2344"]
[TimeControl "180+1"]
[EndTime "9:11:38 PST"]
[Termination "StellarChessPro won on time"]

1. b3 {[%clk 0:03:00.9]} 1... Nf6 {[%clk 0:02:53.9]} 2. Bb2 {[%clk 0:03:01.3]}
2... e6 {[%clk 0:02:53.5]} 3. e3 {[%clk 0:03:01.9]} 3... d5 {[%clk 0:02:53.1]}
4. Nf3 {[%clk 0:03:02.6]} 4... c5 {[%clk 0:02:50.3]} 5. d4 {[%clk 0:03:03.1]}
5... Nc6 {[%clk 0:02:49.8]} 6. dxc5 {[%clk 0:03:01.7]} 6... Bxc5 {[%clk
0:02:48.7]} 7. a3 {[%clk 0:03:01.8]} 7... O-O {[%clk 0:02:48.1]} 8. Nbd2 {[%clk
0:03:01.8]} 8... Re8 {[%clk 0:02:30.6]} 9. Ne5 {[%clk 0:03:01.5]} 9... Nxe5
{[%clk 0:02:22.9]} 10. Bxe5 {[%clk 0:03:02.4]} 10... Bd6 {[%clk 0:02:23.7]} 11.
Bb2 {[%clk 0:03:01.9]} 11... e5 {[%clk 0:02:18.7]} 12. Be2 {[%clk 0:03:01.6]}
12... Bf5 {[%clk 0:02:14.1]} 13. O-O {[%clk 0:03:01.7]} 13... Qc7 {[%clk
0:01:49.5]} 14. c4 {[%clk 0:02:58.5]} 14... e4 {[%clk 0:01:47.5]} 15. h3 {[%clk
0:02:52.6]} 15... Be5 {[%clk 0:01:29.5]} 16. Bxe5 {[%clk 0:02:47.9]} 16... Rxe5
{[%clk 0:00:59.9]} 17. Rc1 {[%clk 0:02:45.8]} 17... Qe7 {[%clk 0:00:55.1]} 18.
b4 {[%clk 0:02:43.3]} 18... Rd8 {[%clk 0:00:48.5]} 19. Qc2 {[%clk 0:02:41.3]}
19... d4 {[%clk 0:00:42.6]} 20. Qb2 {[%clk 0:02:27.8]} 20... d3 {[%clk
0:00:22.8]} 21. Bd1 {[%clk 0:02:28]} 21... Nh5 {[%clk 0:00:17.2]} 22. Bxh5
{[%clk 0:02:27.5]} 22... Bxh3 {[%clk 0:00:17.1]} 23. Nxe4 {[%clk 0:01:56.9]}
23... Rxe4 {[%clk 0:00:06.3]} 24. Bf3 {[%clk 0:01:56.1]} 24... Re5 {[%clk
0:00:02.7]} 25. Rcd1 {[%clk 0:01:50.2]} 25... Qg5 {[%clk 0:00:02.3]} 26. Qc3
{[%clk 0:01:45.9]} 26... Rf5 {[%clk 0:00:02.2]} 27. Bxb7 {[%clk 0:01:40.7]}
27... Rfd5 {[%clk 0:00:02.3]} 28. g3 {[%clk 0:01:36.9]} 28... Qf5 {[%clk
0:00:01.8]} 29. f3 {[%clk 0:01:33.8]} 29... Qg5 {[%clk 0:00:01.3]} 30. Qe1
{[%clk 0:01:33.2]} 1-0